Cogmind - Beta 16.1 @@@ ROGUE MODE // 2026.04.07 @ 21:57:12 Player: FALKE Result: Destroyed by L9-9DK(R) with Subdweller Laser Performance ------------- Evolutions (0) 0 Regions Visited (2) 400 Robots Destroyed (9) 45 Value Destroyed (245) 245 Prototype IDs (0) 0 Alien Tech Used (0) 0 Bonus (-4) -4 TOTAL SCORE: 686 Bonus ------- Friendly Fire -4 Cogmind --------- Core Integrity 0/250 Matter 300/300 Energy 95/100 System Corruption 0% Temperature Cool (6) Movement Walking (190) Ox1 Location -10/Subcaves Parts ------- > --- POWER (1) -------- (None) > --- PROPULSION (2) --- Aluminum Leg Aluminum Leg > --- UTILITY (2) ------ Large Storage Unit > --- WEAPON (2) ------- Makeshift Spear > --- INVENTORY (15) --- Ion Engine Large Storage Unit High-capacity Battery (250) Small Matter Pod (50) Terrain Scan Processor Scrap Shield Medium Laser Small Laser Assault Rifle Light Assault Rifle Grenade Launcher Peak State ------------ > --- POWER ------------ Subdweller Power Source > --- PROPULSION ------- Light Treads Light Treads > --- UTILITY ---------- Large Storage Unit Targeting Computer > --- WEAPON ----------- Light Assault Rifle Makeshift Spear > --- INVENTORY -------- Ion Engine Aluminum Leg Aluminum Leg Large Storage Unit High-capacity Battery Small Matter Pod Terrain Scan Processor Scrap Shield Medium Laser Small Laser Assault Rifle Grenade Launcher [Rating: 12] Favorites ----------- Power Ion Engine Engine Ion Engine Propulsion Light Treads Treads Light Treads Leg Aluminum Leg Utility Targeting Computer Storage Large Storage Unit Processor Targeting Computer Weapon Medium Laser Energy Gun Medium Laser Ballistic Gun Light Assault Rifle Piercing Weapon Makeshift Spear Build | -11 -10 -10 ------- Run | Yrd Mat Sub Slots Evolved . | . . . Power . | . . . Propulsion . | . . . Utility . | . . . Weapon . | . . . Parts Attached 13 | 6 3 4 Power 2 | 1 . 1 Engine 2 | 1 . 1 Core . | . . . Reactor . | . . . Propulsion 4 | 2 . 2 Treads 2 | 2 . . Leg 2 | . . 2 Wheel . | . . . Hover . | . . . Flight . | . . . Utility 3 | 1 2 . Device . | . . . Storage 2 | 1 1 . Processor 1 | . 1 . Hackware . | . . . Protection . | . . . Artifact . | . . . Weapon 4 | 2 1 1 Energy Gun 1 | 1 . . Energy Cannon . | . . . Ballistic Gun 2 | 1 1 . Ballistic Cannon . | . . . Launcher . | . . . Special Weapon . | . . . Impact Weapon . | . . . Slashing Weapon . | . . . Piercing Weapon 1 | . . 1 Special Melee Weapon . | . . . Unidentified Prototypes . | . . . Parts Lost 4 | . . 4 Power 1 | . . 1 Propulsion 2 | . . 2 Utility 1 | . . 1 Weapon . | . . . Highest Loss Streak 4 | . . 4 To Critical Strikes . | . . . Average Backups 8 | 3 8 11 Power 1 | 1 1 1 Propulsion 1 | 1 2 1 Utility 3 | . 2 4 Weapon 2 | . 2 3 Tool/Special . | . . . Unused Backups 9 | . 1 8 Power 2 | . 1 1 Propulsion . | . . . Utility 5 | . . 5 Weapon 2 | . . 2 Tool/Special . | . . . Average Slot Usage (%) 96 | . 97 94 Engine 13 | . 14 13 Treads 27 | . 28 25 Storage 14 | . 14 14 Processor 12 | . 11 13 Energy Gun 13 | . 14 11 Ballistic Gun 13 | . 14 11 Peak Build Rating 12 | 6 8 12 Average Rating 7 | 4 7 8 On Entrance 4 | . 6 8 Avg Prop Armor Cover (%) . | . . . Naked Turns . | . . . Heaviest Build 28 | 14 28 28 Greatest Support 40 | 40 40 40 Greatest Overweight (x) 8 | . . 8 Average Overweight (x) . | . . . Largest Inventory Capacity 15 | 8 15 15 Average Capacity 12 | 6 11 15 Most Carried 14 | 5 10 14 Average Carried 9 | 3 8 12 Final Capacity 15 | 8 15 15 Final Carried 12 | 5 10 12 Class Distribution -------------------- 100% | Mutant Dominant Class ---------------- Mutant | -10/Materials Mutant | -10/Subcaves Resources | -11 -10 -10 ----------- Run | Yrd Mat Sub Matter Collected 424 | 266 113 45 Remotely . | . . . Salvage Created 410 | 59 171 180 Parts 22 | 4 10 8 Haulers Intercepted . | . . . Recyclers Shooed 2 | . 2 . Parts Field Recycled . | . . . Retrieved Matter . | . . . Parts Self-Destructed 7 | . . 7 Prevented . | . . . Parts Restored . | . . . Kills | -11 -10 -10 ------- Run | Yrd Mat Sub Combat Hostiles Destroyed 6 | . 2 4 Melee 3 | . . 3 Guns 3 | . 2 1 Classes Destroyed 4 | 1 2 1 Builder 1 | . 1 . Recycler 2 | 1 1 . Grunt 2 | . 2 . Subdweller 4 | . . 4 Best Kill Streak 2 | 1 2 2 Combat Bots Only 2 | . 2 2 Max Kills in Single Turn 1 | 1 1 1 Gunslinging . | . . . Exploded . | . . . Melee 1 | . . 1 Uniques/NPCs Destroyed . | . . . Combat | -11 -10 -10 -------- Run | Yrd Mat Sub Hostile Shots Fired 66 | . 12 54 Missed 18 | . 2 16 Hits 48 | . 10 38 Projectile 48 | . 10 38 Damage Taken 939 | . 107 832 Core 260 | . 10 250 Absorbed by Shields . | . . . Core Remaining (%) 100 | 100 . . Volleys Fired 31 | 4 17 10 Largest 2 | 2 2 2 Hottest 70 | 70 70 70 Shots Fired 59 | 6 34 19 Gun 59 | 6 34 19 Cannon . | . . . Launcher . | . . . Special . | . . . Kinetic 29 | 2 17 10 Thermal 30 | 4 17 9 Explosive . | . . . Electromagnetic . | . . . Robot Hit Streak 19 | 2 10 19 Robot Miss Streak 2 | 1 2 . Penetration Max . | . . . Secondary Targets . | . . . Shots Hit Robots 55 | 3 22 30 Core Hits 16 | 2 8 6 Critical Kills . | . . . Critical Parts Destroyed . | . . . Critical Strikes 3 | . 2 1 Burn 3 | . 2 1 Melee Attacks 17 | . . 17 Impact . | . . . Slashing . | . . . Piercing 17 | . . 17 Sneak Attacks . | . . . Combat Hostiles . | . . . Follow-up Attacks . | . . . Damage Inflicted 689 | 41 250 398 Guns 375 | 41 250 84 Cannons . | . . . Explosions . | . . . Melee 314 | . . 314 Ramming . | . . . Kinetic 141 | 15 91 35 Thermal 234 | 26 159 49 Explosive . | . . . Electromagnetic . | . . . Impact . | . . . Slashing . | . . . Piercing 314 | . . 314 Highest Corruption . | . . . Average Corruption . | . . . Corruption Purged . | . . . Corruption Blocked . | . . . Overload Shots . | . . . Overflow Damage . | . . . Projectiles . | . . . Explosions . | . . . Melee . | . . . Knockbacks . | . . . Impact . | . . . Kinetic . | . . . Secondary . | . . . Self-Inflicted Damage . | . . . Shots . | . . . Rammed . | . . . Targets Rammed . | . . . Kicked . | . . . Crushed . | . . . Highest Temperature 126 | 20 126 1 Average Temperature 39 | 11 45 1 Received Heat Transfer 189 | . 60 129 Siege Activations . | . . . Martial Activations . | . . . Shielding Activations . | . . . Robots Disrupted . | . . . Combat Hostiles . | . . . Robots Corrupted . | . . . Combat Hostiles . | . . . Parts Fried . | . . . Impact Corruptions . | . . . Robots Melted . | . . . Combat Hostiles . | . . . Parts Melted 2 | . 2 . Heat Transferred 925 | 74 629 222 Parts Sabotaged . | . . . Parts Stolen . | . . . Parts Stripped . | . . . Power Chain Reactions . | . . . Alert | -11 -10 -10 ------- Run | Yrd Mat Sub Maximum Alert Level . | . . . Low Security (%) 100 | 100 100 . Level 1 . | . . . Level 2 . | . . . Level 3 . | . . . Level 4 . | . . . Level 5 . | . . . High Security . | . . . Max Security . | . . . Peak Influence 50 | 5 50 . Initial . | . . . Average 3 | . 4 . Influence Increases 89 | 5 69 15 Destroy 0b10 Robot/C 40 | . 40 . Destroy 0b10 Robot/NC 15 | 5 10 . Destroy Leader 10 | . 10 . Successful Hack 9 | . 9 . Lose Combat Pursuer 15 | . . 15 Influence Decreases 89 | 5 69 15 Time Decay 89 | 5 69 15 Squads Dispatched 1 | . 1 . Investigation . | . . . Extermination . | . . . Reinforcement 1 | . 1 . Assault . | . . . Garrison . | . . . Intercept . | . . . Searches Triggered . | . . . Construction Impeded . | . . . Haulers Reinforced . | . . . Active Scanning Responses . | . . . Cargo Convoy Interrupts . | . . . Stealth | -11 -10 -10 --------- Run | Yrd Mat Sub Distress Signals . | . . . Communications Jammed . | . . . Distress Signals . | . . . Times Spotted 12 | . 2 10 Peak Tracking Total 6 | . 2 6 Tactical Retreats 1 | . . 1 Traps | -11 -10 -10 ------- Run | Yrd Mat Sub Traps Triggered 1 | . . 1 Indirectly . | . . . Trap Hack Attempts . | . . . Triggered . | . . . Disarmed . | . . . Reprogrammed . | . . . Reused . | . . . Traps Extracted . | . . . Installed . | . . . Triggered . | . . . Machines | -11 -10 -10 ---------- Run | Yrd Mat Sub Machines Disabled . | . . . Max in Single Turn . | . . . Machines Repaired . | . . . Machines Dismantled . | . . . Machines Sabotaged . | . . . Overloaded Fab Kills . | . . . Hacking | -11 -10 -10 --------- Run | Yrd Mat Sub Machines Accessed 3 | . 3 . Terminals 2 | . 2 . Fabricators . | . . . Repair Stations . | . . . Recycling Units 1 | . 1 . Scanalyzers . | . . . Garrison Access . | . . . Total Hacks 6 | . 6 . Successful 3 | . 3 . Failed 3 | . 3 . Catastrophic . | . . . Database Lockouts . | . . . Manual . | . . . Terminals 2 | . 2 . Fabricators . | . . . Repair Stations . | . . . Recycling Units 4 | . 4 . Scanalyzers . | . . . Garrison Access . | . . . Terminal Hacks 2 | . 2 . Locate Traps 1 | . 1 . Zone Layout 1 | . 1 . Fabricator Hacks . | . . . Repair Station Hacks . | . . . Recycling Unit Hacks 1 | . 1 . Report Inventory 1 | . 1 . Scanalyzer . | . . . Garrison Access Hacks . | . . . Unauthorized Hacks . | . . . Terminals . | . . . Fabricators . | . . . Repair Stations . | . . . Recycling Units . | . . . Scanalyzers . | . . . Garrison Access . | . . . Data Cores Recovered . | . . . Used . | . . . Hacking Detections 3 | . 3 . Full Trace Events 1 | . 1 . Feedback Events . | . . . Feedback Blocked . | . . . Robot Schematics Acquired . | . . . Robots Built . | . . . Authchips . | . . . Time . | . . . Total Robot Build Rating . | . . . Part Schematics Acquired . | . . . Parts Built . | . . . Authchips . | . . . Time . | . . . Total Part Build Rating . | . . . Part Studies Acquired . | . . . Parts Repaired . | . . . Time . | . . . Parts Recycled . | . . . Recycled Matter . | . . . Retrieved Matter . | . . . Retrieved Components . | . . . Parts Scanalyzed . | . . . Part Schematics Acquired . | . . . Parts Damaged . | . . . Bothacking | -11 -10 -10 ------------ Run | Yrd Mat Sub Used RIF Installer . | . . . Robots Hacked . | . . . Non-combat . | . . . Combat . | . . . Robot Hacks Applied . | . . . Relay Couplers Released . | . . . Fabnet Peak Effective % . | . . . Robots Rewired . | . . . Allies Hacked . | . . . Hacks Repelled . | . . . Allies | -11 -10 -10 -------- Run | Yrd Mat Sub Total Allies . | . . . Largest Group . | . . . Highest-Rated Group . | . . . Highest-Rated Ally . | . . . Total Orders . | . . . Ally Attacks . | . . . Total Damage . | . . . Kills . | . . . Allies Corrupted . | . . . Allies Melted . | . . . Intel | -11 -10 -10 ------- Run | Yrd Mat Sub Active Infowar (turns) . | . . . Robot Analysis Total . | . . . Derelict Logs Recovered . | . . . Drone Launches . | . . . Drone Recoveries . | . . . Exploration | -11 -10 -10 ------------- Run | Yrd Mat Sub Turns Passed 1120 | 113 620 387 Spaces Moved 427 | 46 201 180 Core 13 | 12 . 1 Treads 410 | 34 201 175 Legs 4 | . . 4 Wheels . | . . . Hover . | . . . Flight . | . . . Fastest Speed 50 | 50 160 160 Average Speed 158 | 131 160 163 Slowest Speed 450 | 160 160 450 Overloaded Moves . | . . . Propulsion Burnouts . | . . . Robots Hopped . | . . . Potential Cave-ins . | . . . Cave-ins Triggered . | . . . Exploration Rate (%) 13 | 4 22 13 Regions Visited 2 Branch Regions 1 Pre-discovered Areas . | . . . Known Exits Taken . | . . . Unknown Exits Taken 2 | 1 1 . Scrap Searched 2 | . . 2 Spaces Dug . | . . . Terrain Destroyed . | . . . Melee . | . . . Projectile . | . . . AOE . | . . . Terrain Rammed . | . . . Walls Destroyed . | . . . Machines Disabled . | . . . Actions | -11 -10 -10 --------- Run | Yrd Mat Sub Total 801 | 93 469 239 Wait 285 | 27 239 19 Move 425 | 45 200 180 Hop . | . . . Pick Up 23 | 11 7 5 Fast Attach . | . . . Attach 9 | 6 1 2 Detach 1 | . . 1 Swap 4 | . 2 2 Drop 6 | . 3 3 Fire 31 | 4 17 10 Melee 17 | . . 17 Ram . | . . . Kick . | . . . Crush . | . . . Escape Stasis . | . . . Rewire . | . . . Trap . | . . . Miscellaneous . | . . . Route ------- -11/Scrapyard -10/Materials (discovered 2 exits: [Min] / [*Sub]) -10/Subcaves History --------- Turn | Location | Event 11 | -11/Scrapyard | Discovered new exit (range 14) 114 | -11/Scrapyard | Entered Materials 319 | -10/Materials | Build established: Mutant 428 | -10/Materials | Discovered new exit (range 20) 700 | -10/Materials | Discovered new exit (range 8) 734 | -10/Materials | Entered Subcaves 735 | -10/Subcaves | Approached by a straggling Scientist 1058 | -10/Subcaves | Ambushed by swarm of Subdwellers 1092 | -10/Subcaves | Core integrity fell below 50% 1103 | -10/Subcaves | Core integrity fell below 20% 1121 | -10/Subcaves | Destroyed by L9-9DK(R) with Subdweller Laser Last Messages --------------- 01068_ U1-YEO(R) destroyed. 01069_ OW-95Q(R) suffers critical hit (Destroy). 01070_ 4V-RWX(R) destroyed. 01070_ GD-TAI(R) affixes Scrap Shield Fragment to Scrap Shield. 01071_ HV Slug penetrates GD-TAI(R). 01072_ CX-KB2(h) destroyed. 01074_ OW-95Q(R) affixes Scrap Shield Fragment to Scrap Shield. 01078_ GD-TAI(R) affixes Scrap Shield Fragment to Scrap Shield. 01079_ OW-95Q(R) affixes Scrap Shield Fragment to Scrap Shield. 01082_ Lgt. Treads destroyed. 01084_ GD-TAI(R) destroyed. 01091_ Lgt. Treads destroyed. 01093_ Dropped Aluminum Leg. 01099_ Acquired Aluminum Leg. 01100_ Sub. Power Source destroyed. 01108_ OW-95Q(R) affixes Scrap Shield Fragment to Scrap Shield. 01111_ Acquired Aluminum Leg. 01115_ Acquired 15 matter. 01117_ Targeting Computer destroyed. 01121_ OW-95Q(R) destroyed. Map ----- +----------------------------------------------------+ | ???????????????????????????????? ??? | | ??????????????????????????????## ##?? | | ???????????????????????????#### ??? | | ??????????????????????##???# #??? | | ????????????????# ## #### #??? | | ???????????????? #???? | | ???????????????? ??# #?###? | | ???????????????? ?## ### ## | | ????????????????? ??## # # | | ??????????????????# ??# ## # | | ??????????????????# ?# ### #? | | ?????????????????## ### ## #? | | ???????????????### ?# ### #? | | ??????????????## #?# #? | | ??????????????# #?# ##? | | ??????????????? ### #?? | | ?????????###??? ## #?? | | ??????????$<##??# " ### | | ??????????# ?## # | | ??????????#< ?# # # | | ??????????#<&###< # | | ???????????#=#<< ### % | | ???????????# %%& #?#" #" | | ???????????#& " ###### | | ???????????#&=%< ##?## | | ??????????##&@## #?# "# | | ??????????#!]*%# ## #?## ## | | ??????????#R%%%## ### ### #??# ### | | ??????????#%!!!## #####?# ##??# ## | | ???????# =[=&%### #????# %##### ## | | ???????# <<<<### ##????# ## ## | | ???????#######?# ##????##% # # | | ???????????????# ## ##?# #*% # | | ???????????????# ## ###" ##| " | | ???????????????##### ##" ## # "# | | ?????????????????## "" ## # " | | ????????????????# "" * %" | | ?????????????????#?#### "" !%&"" "" | | ??????????????????????##" ""### " | | ???????????????????????# """" #?### " | | ?????????????????????? "" #???##" | | ????????????????????# ????" | | ????????????????????### "???" | | ??????????????????????## " ??" | | ???????????????????????## ??? | | ????????????????????????# #??? | | ????????????????????????## #??? | | ?????????????????????????# "??? | | ?????????????????????????? ##???? | | ?????????????????????????? ###????? | +----------------------------------------------------+ Best States ------------- Heat Dissipation 25 Energy Generation 15 Energy Capacity 250 Matter Stores 300 Matter Capacity 300 Sight Range 16 Terrain Scan Density 10 Evasion (%) 50 Targeting Accuracy 5 Recoil Reduction 2 Item Schematics ----------------- None Robot Schematics ------------------ None Fabricated ------------ Nothing Repaired ---------- Nothing Studied --------- None Alien Tech Used ----------------- None Achievements -------------- None Challenges ------------ None Game ------ Seed MicrowarpBiometalOptics Manual? 0 Play Time 00:15:19 Cumulative 11.4 hours Start 2026.04.07 @ 21:44:58 End 2026.04.07 @ 21:57:12 Sessions 1 Manual Loads 0 Difficulty Rogue Special Mode None Game No. 21 Rogue 18 Adventurer 3 Explorer 0 Win Type - Total 0 Types 0/0/0/0/0/0/0/0/0/0 Lore% 13 Gallery% 13 Achievement% 14 Wizard Run 0 Options --------- Layout 0 ASCII 0 Keyboard 0 Movement Mouse Keybinds 0 Fullscreen 1 Font 24/Terminus Map View 38x25 Zoom Use 89% Tactical HUD 1 Map Filters NONE Filters NONE Steam 1 RUN: fc3ae424-7ae3-4327-ae0a-663e8d2b671b